[Event "Titled Tuesday Blitz November 22 Early 2022"]
[White "Osmak, Yuliia"]
[Black "Caruana, Fabiano"]
[WhiteFideId "14101602"]
[BlackFideId "2020009"]
[WhiteElo "2328"]
[BlackElo "2847"]
[Result "0-1"]
[Round "07"]
[TimeControl "180+1"]
[Date "2022.11.22"]
[WhiteClock "0:00:02"]
[BlackClock "0:00:38"]

1. d4 {[%clk 0:03:00]}  Nf6 {[%clk 0:02:59]} 2. c4 {[%clk 0:03:00]}  Nc6 {[%clk 0:02:59]} 3. Nc3 {[%clk 0:02:53]}  e5 {[%clk 0:02:59]} 4. d5 {[%clk 0:02:52]}  Ne7 {[%clk 0:02:59]} 5. e4 {[%clk 0:02:52]}  Ng6 {[%clk 0:02:59]} 6. h4 {[%clk 0:02:50]}  h5 {[%clk 0:02:58]} 7. g3 {[%clk 0:02:44]}  Bb4 {[%clk 0:02:57]} 8. Bg5 {[%clk 0:02:36]}  Bxc3+ {[%clk 0:02:50]} 9. bxc3 {[%clk 0:02:37]}  d6 {[%clk 0:02:50]} 10. Bh3 {[%clk 0:02:32]}  Bxh3 {[%clk 0:02:49]} 11. Nxh3 {[%clk 0:02:32]}  Qd7 {[%clk 0:02:45]} 12. Bxf6 {[%clk 0:02:24]}  gxf6 {[%clk 0:02:46]} 13. Qf3 {[%clk 0:02:24]}  Ke7 {[%clk 0:02:39]} 14. Ng1 {[%clk 0:02:18]}  Qa4 {[%clk 0:02:33]} 15. Qd3 {[%clk 0:02:15]}  Rag8 {[%clk 0:02:26]} 16. Nf3 {[%clk 0:02:09]}  Nf8 {[%clk 0:02:17]} 17. Nd2 {[%clk 0:02:07]}  Nd7 {[%clk 0:02:16]} 18. Nf1 {[%clk 0:01:54]}  Nc5 {[%clk 0:02:14]} 19. Qe2 {[%clk 0:01:54]}  Kd7 {[%clk 0:02:07]} 20. f3 {[%clk 0:01:40]}  Kc8 {[%clk 0:02:02]} 21. Kf2 {[%clk 0:01:39]}  f5 {[%clk 0:01:50]} 22. exf5 {[%clk 0:01:38]}  e4 {[%clk 0:01:50]} 23. fxe4 {[%clk 0:01:33]}  Rg4 {[%clk 0:01:49]} 24. Nd2 {[%clk 0:01:26]}  Qc2 {[%clk 0:01:47]} 25. Rhe1 {[%clk 0:01:02]}  Nd3+ {[%clk 0:01:43]} 26. Kf3 {[%clk 0:00:44]}  Nxe1+ {[%clk 0:01:43]} 27. Rxe1 {[%clk 0:00:45]}  Rhg8 {[%clk 0:01:39]} 28. Nf1 {[%clk 0:00:43]}  Qxc3+ {[%clk 0:01:39]} 29. Qe3 {[%clk 0:00:41]}  Qxc4 {[%clk 0:01:13]} 30. Qxa7 {[%clk 0:00:40]}  b6 {[%clk 0:01:12]} 31. Qa3 {[%clk 0:00:29]}  Kb7 {[%clk 0:01:03]} 32. Kf2 {[%clk 0:00:23]}  Qd4+ {[%clk 0:00:59]} 33. Qe3 {[%clk 0:00:22]}  Rxe4 {[%clk 0:00:55]} 34. Qxd4 {[%clk 0:00:21]}  Rxd4 {[%clk 0:00:56]} 35. Re7 {[%clk 0:00:21]}  Rxd5 {[%clk 0:00:47]} 36. Rxf7 {[%clk 0:00:21]}  Ra8 {[%clk 0:00:47]} 37. Ne3 {[%clk 0:00:19]}  Rxa2+ {[%clk 0:00:47]} 38. Kf3 {[%clk 0:00:19]}  Ra3 {[%clk 0:00:43]} 39. Re7 {[%clk 0:00:02]}  Rxf5+ {[%clk 0:00:42]} 40. Ke4 {[%clk 0:00:02]}  Rc5 {[%clk 0:00:38]} 0-1


[Site "https://www.chess.com"]

[Event "Titled Tuesday Blitz November 22 Early 2022"]
[White "Papasimakopoulos, Alexandros"]
[Black "Unat, Can Haktan"]
[WhiteFideId "4244125"]
[BlackFideId "6398073"]
[WhiteElo "2365"]
[BlackElo "2146"]
[Result "1/2-1/2"]
[Round "07"]
[TimeControl "180+1"]
[Date "2022.11.23"]
[WhiteClock "0:00:08"]
[BlackClock "0:00:08"]

1. d4 {[%clk 0:03:00]}  d5 {[%clk 0:03:00]} 2. c4 {[%clk 0:03:00]}  dxc4 {[%clk 0:03:01]} 3. Nf3 {[%clk 0:03:00]}  Nf6 {[%clk 0:03:02]} 4. e3 {[%clk 0:03:00]}  a6 {[%clk 0:03:01]} 5. Bxc4 {[%clk 0:03:00]}  b5 {[%clk 0:03:01]} 6. Bd3 {[%clk 0:03:00]}  Bb7 {[%clk 0:03:02]} 7. a4 {[%clk 0:03:01]}  b4 {[%clk 0:03:02]} 8. O-O {[%clk 0:03:00]}  Nbd7 {[%clk 0:03:01]} 9. Nbd2 {[%clk 0:03:00]}  e6 {[%clk 0:03:01]} 10. b3 {[%clk 0:03:00]}  c5 {[%clk 0:03:01]} 11. Bb2 {[%clk 0:03:00]}  Be7 {[%clk 0:03:02]} 12. Qe2 {[%clk 0:03:00]}  O-O {[%clk 0:03:03]} 13. Rac1 {[%clk 0:02:58]}  Nd5 {[%clk 0:03:02]} 14. Rfd1 {[%clk 0:02:49]}  Bf6 {[%clk 0:02:59]} 15. Ne4 {[%clk 0:02:48]}  cxd4 {[%clk 0:02:57]} 16. Nxf6+ {[%clk 0:02:39]}  Qxf6 {[%clk 0:02:57]} 17. Nxd4 {[%clk 0:02:33]}  Qh6 {[%clk 0:02:49]} 18. Nc6 {[%clk 0:02:11]}  Rac8 {[%clk 0:02:43]} 19. Na5 {[%clk 0:02:09]}  Rxc1 {[%clk 0:02:24]} 20. Rxc1 {[%clk 0:02:07]}  Ba8 {[%clk 0:02:25]} 21. Bxa6 {[%clk 0:02:03]}  Qg6 {[%clk 0:02:21]} 22. Bb7 {[%clk 0:02:02]}  Nc3 {[%clk 0:01:52]} 23. Bxc3 {[%clk 0:01:59]}  bxc3 {[%clk 0:01:53]} 24. Rxc3 {[%clk 0:01:50]}  Qf5 {[%clk 0:01:48]} 25. b4 {[%clk 0:01:37]}  Qb1+ {[%clk 0:01:45]} 26. Qf1 {[%clk 0:01:37]}  Qxb4 {[%clk 0:01:46]} 27. Rc7 {[%clk 0:01:24]}  Qxa5 {[%clk 0:01:24]} 28. Rxd7 {[%clk 0:01:23]}  Qxa4 {[%clk 0:01:24]} 29. Rc7 {[%clk 0:01:10]}  Qa7 {[%clk 0:01:14]} 30. Qb1 {[%clk 0:01:09]}  Rb8 {[%clk 0:01:03]} 31. Rc8+ {[%clk 0:01:09]}  Rxc8 {[%clk 0:01:04]} 32. Bxc8 {[%clk 0:01:10]}  Qc7 {[%clk 0:01:02]} 33. Ba6 {[%clk 0:01:05]}  g6 {[%clk 0:00:57]} 34. Bf1 {[%clk 0:01:05]}  Qe5 {[%clk 0:00:56]} 35. Qd1 {[%clk 0:01:02]}  Bd5 {[%clk 0:00:56]} 36. Qa4 {[%clk 0:01:01]}  Kg7 {[%clk 0:00:56]} 37. h3 {[%clk 0:01:00]}  h5 {[%clk 0:00:54]} 38. Qa3 {[%clk 0:00:59]}  Qf6 {[%clk 0:00:51]} 39. Qa4 {[%clk 0:00:53]}  g5 {[%clk 0:00:51]} 40. Be2 {[%clk 0:00:49]}  Kh6 {[%clk 0:00:45]} 41. Qa5 {[%clk 0:00:38]}  h4 {[%clk 0:00:34]} 42. Qa3 {[%clk 0:00:35]}  Kg7 {[%clk 0:00:33]} 43. Qc1 {[%clk 0:00:33]}  Qe5 {[%clk 0:00:32]} 44. Bf3 {[%clk 0:00:33]}  Bb3 {[%clk 0:00:22]} 45. Qb1 {[%clk 0:00:31]}  Bc4 {[%clk 0:00:20]} 46. Qc1 {[%clk 0:00:29]}  Bd3 {[%clk 0:00:19]} 47. Qa3 {[%clk 0:00:29]}  Bf5 {[%clk 0:00:18]} 48. Qa7 {[%clk 0:00:27]}  Qc3 {[%clk 0:00:16]} 49. Qd4+ {[%clk 0:00:18]}  Qxd4 {[%clk 0:00:16]} 50. exd4 {[%clk 0:00:18]}  Kf6 {[%clk 0:00:15]} 51. Kf1 {[%clk 0:00:19]}  Bd3+ {[%clk 0:00:10]} 52. Ke1 {[%clk 0:00:18]}  Kf5 {[%clk 0:00:10]} 53. Kd2 {[%clk 0:00:18]}  Be4 {[%clk 0:00:05]} 54. Ke3 {[%clk 0:00:10]}  Bxf3 {[%clk 0:00:05]} 55. Kxf3 {[%clk 0:00:11]}  f6 {[%clk 0:00:05]} 56. g3 {[%clk 0:00:07]}  hxg3 {[%clk 0:00:03]} 57. fxg3 {[%clk 0:00:07]}  Kg6 {[%clk 0:00:04]} 58. Ke4 {[%clk 0:00:07]}  Kf7 {[%clk 0:00:04]} 59. g4 {[%clk 0:00:04]}  Ke7 {[%clk 0:00:04]} 60. d5 {[%clk 0:00:04]}  exd5+ {[%clk 0:00:03]} 61. Kxd5 {[%clk 0:00:05]}  Kd7 {[%clk 0:00:04]} 62. Kd4 {[%clk 0:00:05]}  Kd6 {[%clk 0:00:05]} 63. Ke4 {[%clk 0:00:05]}  Ke6 {[%clk 0:00:05]} 64. Kd4 {[%clk 0:00:05]}  f5 {[%clk 0:00:05]} 65. gxf5+ {[%clk 0:00:05]}  Kxf5 {[%clk 0:00:06]} 66. Ke3 {[%clk 0:00:06]}  Ke5 {[%clk 0:00:06]} 67. Kf3 {[%clk 0:00:06]}  Kf5 {[%clk 0:00:07]} 68. Kg3 {[%clk 0:00:06]}  Kg6 {[%clk 0:00:07]} 69. h4 {[%clk 0:00:07]}  gxh4+ {[%clk 0:00:08]} 70. Kxh4 {[%clk 0:00:08]} 1/2-1/2


[Site "https://www.chess.com"]

[Event "Titled Tuesday Blitz November 22 Early 2022"]
[White "Rios Escobar, Adan"]
[Black "Kovacevic, Radmila"]
[WhiteFideId "3403645"]
[BlackFideId "933171"]
[WhiteElo "2352"]
[BlackElo "2208"]
[Result "1-0"]
[Round "07"]
[TimeControl "180+1"]
[Date "2022.11.23"]
[WhiteClock "0:00:11"]
[BlackClock "0:00:40"]

1. d4 {[%clk 0:02:47]}  e5 {[%clk 0:03:00]} 2. dxe5 {[%clk 0:02:46]}  Nc6 {[%clk 0:03:00]} 3. Nf3 {[%clk 0:02:44]}  Qe7 {[%clk 0:02:59]} 4. Bg5 {[%clk 0:02:39]}  Qb4+ {[%clk 0:02:59]} 5. Nc3 {[%clk 0:02:40]}  Qxb2 {[%clk 0:02:58]} 6. Bd2 {[%clk 0:02:37]}  Bb4 {[%clk 0:02:58]} 7. Rb1 {[%clk 0:02:35]}  Qxc3 {[%clk 0:02:57]} 8. Bxc3 {[%clk 0:02:34]}  Bxc3+ {[%clk 0:02:58]} 9. Nd2 {[%clk 0:02:35]}  Bxe5 {[%clk 0:02:59]} 10. e3 {[%clk 0:02:29]}  Nf6 {[%clk 0:02:58]} 11. Bc4 {[%clk 0:02:26]}  d5 {[%clk 0:02:57]} 12. Bb5 {[%clk 0:02:21]}  O-O {[%clk 0:02:56]} 13. O-O {[%clk 0:02:18]}  Ne7 {[%clk 0:02:52]} 14. Nf3 {[%clk 0:02:15]}  Bc3 {[%clk 0:02:50]} 15. Bd3 {[%clk 0:02:12]}  h6 {[%clk 0:02:49]} 16. h3 {[%clk 0:02:10]}  Rd8 {[%clk 0:02:47]} 17. Rb3 {[%clk 0:02:04]}  Ba5 {[%clk 0:02:46]} 18. Qb1 {[%clk 0:01:57]}  Bb6 {[%clk 0:02:40]} 19. c4 {[%clk 0:01:52]}  c6 {[%clk 0:02:32]} 20. Rd1 {[%clk 0:01:38]}  Be6 {[%clk 0:02:24]} 21. c5 {[%clk 0:01:24]}  Bxc5 {[%clk 0:02:21]} 22. Rxb7 {[%clk 0:01:24]}  Bd6 {[%clk 0:02:17]} 23. Nd4 {[%clk 0:01:20]}  Bc8 {[%clk 0:02:14]} 24. Rxe7 {[%clk 0:00:40]}  Bxe7 {[%clk 0:02:13]} 25. Nxc6 {[%clk 0:00:40]}  Rd7 {[%clk 0:02:09]} 26. Bf5 {[%clk 0:00:33]}  Rb7 {[%clk 0:02:08]} 27. Nxe7+ {[%clk 0:00:18]}  Rxe7 {[%clk 0:02:07]} 28. Bxc8 {[%clk 0:00:18]}  Rxc8 {[%clk 0:02:07]} 29. Qb4 {[%clk 0:00:16]}  Rec7 {[%clk 0:02:04]} 30. Qa3 {[%clk 0:00:16]}  Rd8 {[%clk 0:01:51]} 31. Rd4 {[%clk 0:00:16]}  Kh7 {[%clk 0:01:34]} 32. Qa5 {[%clk 0:00:15]}  Rc1+ {[%clk 0:01:27]} 33. Kh2 {[%clk 0:00:15]}  Rd7 {[%clk 0:01:28]} 34. Qd2 {[%clk 0:00:13]}  Rcc7 {[%clk 0:01:24]} 35. Qd3+ {[%clk 0:00:13]}  g6 {[%clk 0:01:23]} 36. Rf4 {[%clk 0:00:12]}  Nh5 {[%clk 0:01:18]} 37. Rf3 {[%clk 0:00:11]}  f5 {[%clk 0:01:10]} 38. g4 {[%clk 0:00:09]}  Ng7 {[%clk 0:01:10]} 39. a4 {[%clk 0:00:08]}  h5 {[%clk 0:01:04]} 40. Rf4 {[%clk 0:00:05]}  Kh6 {[%clk 0:00:49]} 41. gxf5 {[%clk 0:00:02]}  gxf5 {[%clk 0:00:44]} 42. Rxf5 {[%clk 0:00:03]}  Nxf5 {[%clk 0:00:44]} 43. Qxf5 {[%clk 0:00:04]}  Rb7 {[%clk 0:00:39]} 44. Qe6+ {[%clk 0:00:03]}  Kh7 {[%clk 0:00:38]} 45. h4 {[%clk 0:00:04]}  Rf7 {[%clk 0:00:36]} 46. f4 {[%clk 0:00:02]}  Rbd7 {[%clk 0:00:36]} 47. Qe5 {[%clk 0:00:02]}  Kg8 {[%clk 0:00:28]} 48. Qg5+ {[%clk 0:00:02]}  Rg7 {[%clk 0:00:28]} 49. Qxh5 {[%clk 0:00:02]}  Rh7 {[%clk 0:00:29]} 50. Qe8+ {[%clk 0:00:02]}  Kg7 {[%clk 0:00:27]} 51. Qxd7+ {[%clk 0:00:03]}  Kg6 {[%clk 0:00:28]} 52. Qxd5 {[%clk 0:00:03]}  Rxh4+ {[%clk 0:00:27]} 53. Kg3 {[%clk 0:00:04]}  Rh5 {[%clk 0:00:28]} 54. Qd6+ {[%clk 0:00:04]}  Kg7 {[%clk 0:00:28]} 55. Qc7+ {[%clk 0:00:04]}  Kf6 {[%clk 0:00:28]} 56. Qxa7 {[%clk 0:00:05]}  Rd5 {[%clk 0:00:28]} 57. Qb6+ {[%clk 0:00:04]}  Ke7 {[%clk 0:00:28]} 58. Qb7+ {[%clk 0:00:04]}  Rd7 {[%clk 0:00:27]} 59. Qxd7+ {[%clk 0:00:04]}  Kxd7 {[%clk 0:00:28]} 60. f5 {[%clk 0:00:05]}  Kc6 {[%clk 0:00:29]} 61. a5 {[%clk 0:00:06]}  Kd6 {[%clk 0:00:30]} 62. f6 {[%clk 0:00:06]}  Kc5 {[%clk 0:00:30]} 63. a6 {[%clk 0:00:07]}  Kb5 {[%clk 0:00:31]} 64. f7 {[%clk 0:00:08]}  Kb6 {[%clk 0:00:32]} 65. f8=Q {[%clk 0:00:08]}  Ka7 {[%clk 0:00:33]} 66. e4 {[%clk 0:00:09]}  Kb6 {[%clk 0:00:33]} 67. e5 {[%clk 0:00:10]}  Ka7 {[%clk 0:00:34]} 68. e6 {[%clk 0:00:10]}  Kb6 {[%clk 0:00:35]} 69. Qa8 {[%clk 0:00:10]}  Kc7 {[%clk 0:00:35]} 70. a7 {[%clk 0:00:11]}  Kd6 {[%clk 0:00:35]} 71. e7 {[%clk 0:00:11]}  Kc7 {[%clk 0:00:36]} 72. e8=Q {[%clk 0:00:11]}  Kb6 {[%clk 0:00:37]} 73. Qab8+ {[%clk 0:00:11]}  Kc5 {[%clk 0:00:38]} 74. Qbb5+ {[%clk 0:00:10]}  Kd4 {[%clk 0:00:38]} 75. Qed7+ {[%clk 0:00:11]}  Kc3 {[%clk 0:00:39]} 76. Qbd3+ {[%clk 0:00:11]}  Kb2 {[%clk 0:00:39]} 77. Q7b5+ {[%clk 0:00:11]}  Kc1 {[%clk 0:00:40]} 78. Qbb1# {[%clk 0:00:11]} 1-0


[Site "https://www.chess.com"]

[Event "Titled Tuesday Blitz November 22 Early 2022"]
[White "Rottenwohrer Suarez, Juan"]
[Black "Prithu Gupta"]
[WhiteFideId "32068182"]
[BlackFideId "46618546"]
[WhiteElo "2195"]
[BlackElo "2344"]
[Result "1-0"]
[Round "07"]
[TimeControl "180+1"]
[Date "2022.11.23"]
[WhiteClock "0:00:44"]
[BlackClock "0:01:05"]

1. e4 {[%clk 0:03:00]}  d5 {[%clk 0:02:50]} 2. exd5 {[%clk 0:03:00]}  Qxd5 {[%clk 0:02:50]} 3. Nf3 {[%clk 0:03:00]}  c5 {[%clk 0:02:38]} 4. Nc3 {[%clk 0:02:50]}  Qd8 {[%clk 0:02:02]} 5. Bc4 {[%clk 0:02:47]}  Nc6 {[%clk 0:01:53]} 6. O-O {[%clk 0:02:43]}  e6 {[%clk 0:01:50]} 7. Re1 {[%clk 0:02:41]}  Nf6 {[%clk 0:01:48]} 8. d3 {[%clk 0:02:17]}  Be7 {[%clk 0:01:45]} 9. Bf4 {[%clk 0:02:18]}  O-O {[%clk 0:01:44]} 10. h3 {[%clk 0:02:18]}  a6 {[%clk 0:01:44]} 11. a4 {[%clk 0:02:18]}  Nd5 {[%clk 0:01:35]} 12. Bg3 {[%clk 0:01:55]}  Nxc3 {[%clk 0:01:34]} 13. bxc3 {[%clk 0:01:55]}  b6 {[%clk 0:01:30]} 14. Rb1 {[%clk 0:01:34]}  Bb7 {[%clk 0:01:27]} 15. Qe2 {[%clk 0:01:31]}  Na5 {[%clk 0:01:20]} 16. Ba2 {[%clk 0:00:58]}  c4 {[%clk 0:01:17]} 17. Ne5 {[%clk 0:00:50]}  cxd3 {[%clk 0:01:10]} 18. cxd3 {[%clk 0:00:49]}  Rc8 {[%clk 0:01:07]} 19. Nxf7 {[%clk 0:00:46]}  Rxf7 {[%clk 0:01:05]} 20. Qxe6 {[%clk 0:00:44]} 1-0


[Site "https://www.chess.com"]

[Event "Titled Tuesday Blitz November 22 Early 2022"]
[White "Spalir, Monika"]
[Black "Stefanova, Antoaneta"]
[WhiteFideId "14609118"]
[BlackFideId "2902257"]
[WhiteElo "2032"]
[BlackElo "2426"]
[Result "0-1"]
[Round "07"]
[TimeControl "180+1"]
[Date "2022.11.23"]
[WhiteClock "0:00:02"]
[BlackClock "0:00:31"]

1. d4 {[%clk 0:03:00]}  g6 {[%clk 0:02:57]} 2. Nf3 {[%clk 0:03:00]}  Bg7 {[%clk 0:02:57]} 3. Bf4 {[%clk 0:02:59]}  c5 {[%clk 0:02:53]} 4. e3 {[%clk 0:02:58]}  b6 {[%clk 0:02:48]} 5. Be2 {[%clk 0:02:53]}  Bb7 {[%clk 0:02:47]} 6. h3 {[%clk 0:02:50]}  Nf6 {[%clk 0:02:45]} 7. O-O {[%clk 0:02:49]}  O-O {[%clk 0:02:45]} 8. c4 {[%clk 0:02:47]}  d5 {[%clk 0:02:33]} 9. dxc5 {[%clk 0:02:38]}  bxc5 {[%clk 0:02:33]} 10. Nc3 {[%clk 0:02:26]}  e6 {[%clk 0:02:16]} 11. cxd5 {[%clk 0:02:08]}  exd5 {[%clk 0:02:16]} 12. Rc1 {[%clk 0:02:08]}  Nbd7 {[%clk 0:02:06]} 13. Na4 {[%clk 0:01:42]}  Qa5 {[%clk 0:01:45]} 14. b4 {[%clk 0:01:06]}  cxb4 {[%clk 0:01:28]} 15. Bc7 {[%clk 0:00:58]}  Nb6 {[%clk 0:01:27]} 16. Nc5 {[%clk 0:00:48]}  Bc8 {[%clk 0:01:22]} 17. Nd4 {[%clk 0:00:22]}  Ne4 {[%clk 0:01:10]} 18. Nxe4 {[%clk 0:00:14]}  dxe4 {[%clk 0:01:09]} 19. Nb5 {[%clk 0:00:10]}  Be6 {[%clk 0:01:04]} 20. Nd6 {[%clk 0:00:07]}  Qxa2 {[%clk 0:01:00]} 21. Bb5 {[%clk 0:00:06]}  b3 {[%clk 0:00:57]} 22. Bc6 {[%clk 0:00:06]}  b2 {[%clk 0:00:54]} 23. Rb1 {[%clk 0:00:05]}  Rac8 {[%clk 0:00:51]} 24. Nxc8 {[%clk 0:00:02]}  Rxc8 {[%clk 0:00:51]} 25. Bxb6 {[%clk 0:00:03]}  axb6 {[%clk 0:00:50]} 26. Bxe4 {[%clk 0:00:03]}  Bc4 {[%clk 0:00:34]} 27. Re1 {[%clk 0:00:03]}  Bc3 {[%clk 0:00:34]} 28. f3 {[%clk 0:00:01]}  Bxe1 {[%clk 0:00:33]} 29. Qxe1 {[%clk 0:00:02]}  Qa3 {[%clk 0:00:32]} 30. Kh2 {[%clk 0:00:02]}  Ba2 {[%clk 0:00:31]} 0-1


[Site "https://www.chess.com"]

[Event "Titled Tuesday Blitz November 22 Early 2022"]
[White "Sadhwani, Raunak"]
[Black "Le Goff, Damien"]
[WhiteFideId "35093487"]
[BlackFideId "634808"]
[WhiteElo "2656"]
[BlackElo "2409"]
[Result "1-0"]
[Round "07"]
[TimeControl "180+1"]
[Date "2022.11.23"]
[WhiteClock "0:02:14"]
[BlackClock "0:01:05"]

1. e4 {[%clk 0:03:00]}  c5 {[%clk 0:02:59]} 2. Nc3 {[%clk 0:03:01]}  d6 {[%clk 0:02:57]} 3. d4 {[%clk 0:03:00]}  cxd4 {[%clk 0:02:57]} 4. Qxd4 {[%clk 0:03:01]}  Nc6 {[%clk 0:02:57]} 5. Qd2 {[%clk 0:03:02]}  g6 {[%clk 0:02:56]} 6. b3 {[%clk 0:03:02]}  Bh6 {[%clk 0:02:56]} 7. f4 {[%clk 0:03:03]}  Nf6 {[%clk 0:02:55]} 8. Bb2 {[%clk 0:03:03]}  O-O {[%clk 0:02:54]} 9. O-O-O {[%clk 0:03:03]}  e5 {[%clk 0:02:53]} 10. g3 {[%clk 0:03:04]}  Bg4 {[%clk 0:02:48]} 11. Be2 {[%clk 0:03:02]}  Re8 {[%clk 0:02:40]} 12. Bxg4 {[%clk 0:02:55]}  Nxg4 {[%clk 0:02:38]} 13. Nf3 {[%clk 0:02:49]}  Rc8 {[%clk 0:02:26]} 14. Kb1 {[%clk 0:02:48]}  a6 {[%clk 0:02:16]} 15. Rhf1 {[%clk 0:02:47]}  b5 {[%clk 0:02:14]} 16. Nd5 {[%clk 0:02:45]}  Bg7 {[%clk 0:02:06]} 17. f5 {[%clk 0:02:42]}  gxf5 {[%clk 0:01:47]} 18. Nh4 {[%clk 0:02:42]}  fxe4 {[%clk 0:01:41]} 19. Nf5 {[%clk 0:02:42]}  e3 {[%clk 0:01:29]} 20. Qe2 {[%clk 0:02:31]}  Nh6 {[%clk 0:01:20]} 21. Nxh6+ {[%clk 0:02:23]}  Bxh6 {[%clk 0:01:19]} 22. Nf6+ {[%clk 0:02:24]}  Kf8 {[%clk 0:01:10]} 23. Qh5 {[%clk 0:02:20]}  Bg7 {[%clk 0:01:06]} 24. Nxh7+ {[%clk 0:02:12]}  Kg8 {[%clk 0:01:05]} 25. Qxf7+ {[%clk 0:02:13]}  Kxh7 {[%clk 0:01:05]} 26. Rf5 {[%clk 0:02:14]} 1-0


[Site "https://www.chess.com"]

[Event "Titled Tuesday Blitz November 22 Early 2022"]
[White "Sarana, Alexey"]
[Black "Dardha, Daniel"]
[WhiteFideId "24133795"]
[BlackFideId "240990"]
[WhiteElo "2708"]
[BlackElo "2528"]
[Result "0-1"]
[Round "07"]
[TimeControl "180+1"]
[Date "2022.11.22"]
[WhiteClock "0:00:08"]
[BlackClock "0:00:20"]

1. c4 {[%clk 0:03:00]}  e6 {[%clk 0:02:59]} 2. Nc3 {[%clk 0:03:00]}  d5 {[%clk 0:02:59]} 3. d4 {[%clk 0:03:01]}  Be7 {[%clk 0:02:59]} 4. Nf3 {[%clk 0:02:57]}  Nf6 {[%clk 0:02:59]} 5. g3 {[%clk 0:02:57]}  O-O {[%clk 0:02:56]} 6. Bg2 {[%clk 0:02:57]}  dxc4 {[%clk 0:02:54]} 7. Ne5 {[%clk 0:02:57]}  c5 {[%clk 0:02:55]} 8. dxc5 {[%clk 0:02:57]}  Qxd1+ {[%clk 0:02:55]} 9. Nxd1 {[%clk 0:02:57]}  Bxc5 {[%clk 0:02:56]} 10. O-O {[%clk 0:02:58]}  Nc6 {[%clk 0:02:56]} 11. Bxc6 {[%clk 0:02:58]}  bxc6 {[%clk 0:02:57]} 12. Be3 {[%clk 0:02:51]}  Bxe3 {[%clk 0:02:57]} 13. Nxe3 {[%clk 0:02:51]}  c3 {[%clk 0:02:57]} 14. b3 {[%clk 0:02:47]}  Ba6 {[%clk 0:02:47]} 15. N3c4 {[%clk 0:02:41]}  Nd5 {[%clk 0:02:38]} 16. Rfc1 {[%clk 0:02:38]}  f5 {[%clk 0:02:33]} 17. Rc2 {[%clk 0:02:23]}  c5 {[%clk 0:02:29]} 18. f3 {[%clk 0:02:07]}  Rfd8 {[%clk 0:02:18]} 19. Kf2 {[%clk 0:02:06]}  Bb5 {[%clk 0:02:05]} 20. Na3 {[%clk 0:01:18]}  a6 {[%clk 0:02:00]} 21. Nec4 {[%clk 0:01:01]}  Rab8 {[%clk 0:01:43]} 22. h3 {[%clk 0:00:53]}  Kf7 {[%clk 0:01:42]} 23. e4 {[%clk 0:00:53]}  fxe4 {[%clk 0:01:42]} 24. fxe4 {[%clk 0:00:54]}  Nf6 {[%clk 0:01:25]} 25. Nxb5 {[%clk 0:00:43]}  axb5 {[%clk 0:00:50]} 26. Ne5+ {[%clk 0:00:43]}  Ke8 {[%clk 0:00:50]} 27. Nc6 {[%clk 0:00:44]}  b4 {[%clk 0:00:49]} 28. Nxb8 {[%clk 0:00:39]}  Rxb8 {[%clk 0:00:46]} 29. Re1 {[%clk 0:00:37]}  Ke7 {[%clk 0:00:38]} 30. e5 {[%clk 0:00:30]}  Nd5 {[%clk 0:00:37]} 31. Ke2 {[%clk 0:00:29]}  Rf8 {[%clk 0:00:37]} 32. h4 {[%clk 0:00:17]}  Rf5 {[%clk 0:00:35]} 33. g4 {[%clk 0:00:14]}  Rf4 {[%clk 0:00:27]} 34. Rg1 {[%clk 0:00:13]}  Re4+ {[%clk 0:00:23]} 35. Kd3 {[%clk 0:00:13]}  Rd4+ {[%clk 0:00:21]} 36. Ke2 {[%clk 0:00:14]}  Kd7 {[%clk 0:00:20]} 37. h5 {[%clk 0:00:13]}  Re4+ {[%clk 0:00:20]} 38. Kd3 {[%clk 0:00:13]}  Re3+ {[%clk 0:00:19]} 39. Kc4 {[%clk 0:00:11]}  Kc6 {[%clk 0:00:20]} 40. a3 {[%clk 0:00:08]}  Nb6# {[%clk 0:00:20]} 0-1


[Site "https://www.chess.com"]

[Event "Titled Tuesday Blitz November 22 Early 2022"]
[White "Seo, Jung Min"]
[Black "Madaminov, Mukhiddin"]
[WhiteFideId "1734687"]
[BlackFideId "14210703"]
[WhiteElo "2455"]
[BlackElo "2341"]
[Result "1-0"]
[Round "07"]
[TimeControl "180+1"]
[Date "2022.11.22"]
[WhiteClock "0:00:16"]
[BlackClock "0:00:01"]

1. e4 {[%clk 0:02:59]}  e5 {[%clk 0:02:59]} 2. Nf3 {[%clk 0:03:00]}  Nc6 {[%clk 0:03:00]} 3. Bb5 {[%clk 0:03:00]}  a6 {[%clk 0:03:00]} 4. Ba4 {[%clk 0:03:00]}  Nf6 {[%clk 0:03:01]} 5. O-O {[%clk 0:03:00]}  Nxe4 {[%clk 0:03:01]} 6. d4 {[%clk 0:03:00]}  b5 {[%clk 0:03:01]} 7. Bb3 {[%clk 0:03:01]}  d5 {[%clk 0:03:02]} 8. dxe5 {[%clk 0:03:00]}  Be6 {[%clk 0:03:02]} 9. Nbd2 {[%clk 0:02:49]}  Be7 {[%clk 0:03:02]} 10. c3 {[%clk 0:02:46]}  O-O {[%clk 0:03:01]} 11. Bc2 {[%clk 0:02:46]}  f5 {[%clk 0:03:01]} 12. exf6 {[%clk 0:02:45]}  Nxf6 {[%clk 0:02:59]} 13. h3 {[%clk 0:02:42]}  Qd7 {[%clk 0:02:56]} 14. Nb3 {[%clk 0:02:42]}  Bd6 {[%clk 0:02:52]} 15. Ng5 {[%clk 0:02:41]}  Bf5 {[%clk 0:02:49]} 16. Bxf5 {[%clk 0:02:40]}  Qxf5 {[%clk 0:02:46]} 17. Qf3 {[%clk 0:02:39]}  Qg6 {[%clk 0:02:31]} 18. Ne6 {[%clk 0:02:32]}  Rfe8 {[%clk 0:02:27]} 19. Nf4 {[%clk 0:02:31]}  Qf5 {[%clk 0:02:22]} 20. g4 {[%clk 0:02:16]}  Qe5 {[%clk 0:02:20]} 21. Qg2 {[%clk 0:02:13]}  Ne4 {[%clk 0:02:14]} 22. Nd3 {[%clk 0:02:08]}  Qf6 {[%clk 0:02:10]} 23. Be3 {[%clk 0:02:08]}  Rf8 {[%clk 0:02:05]} 24. Nd4 {[%clk 0:02:07]}  Nxd4 {[%clk 0:02:03]} 25. cxd4 {[%clk 0:02:04]}  Rae8 {[%clk 0:02:01]} 26. Rae1 {[%clk 0:02:00]}  h6 {[%clk 0:01:52]} 27. f4 {[%clk 0:01:31]}  c6 {[%clk 0:01:27]} 28. b3 {[%clk 0:01:30]}  Kh7 {[%clk 0:01:27]} 29. Kh1 {[%clk 0:01:17]}  Qh4 {[%clk 0:01:24]} 30. Kg1 {[%clk 0:01:15]}  a5 {[%clk 0:01:22]} 31. Ne5 {[%clk 0:01:00]}  Nc3 {[%clk 0:00:43]} 32. Bd2 {[%clk 0:00:47]}  Ne4 {[%clk 0:00:36]} 33. Be3 {[%clk 0:00:44]}  Bb4 {[%clk 0:00:29]} 34. Rc1 {[%clk 0:00:42]}  Bc3 {[%clk 0:00:29]} 35. Nxc6 {[%clk 0:00:36]}  b4 {[%clk 0:00:30]} 36. Ne5 {[%clk 0:00:35]}  Qd8 {[%clk 0:00:24]} 37. f5 {[%clk 0:00:35]}  Qb6 {[%clk 0:00:24]} 38. Nd7 {[%clk 0:00:29]}  Qa6 {[%clk 0:00:17]} 39. Nxf8+ {[%clk 0:00:28]}  Rxf8 {[%clk 0:00:18]} 40. Rcd1 {[%clk 0:00:23]}  Re8 {[%clk 0:00:16]} 41. h4 {[%clk 0:00:23]}  Nf6 {[%clk 0:00:14]} 42. Rf3 {[%clk 0:00:23]}  Re4 {[%clk 0:00:14]} 43. g5 {[%clk 0:00:22]}  Rg4 {[%clk 0:00:09]} 44. Rg3 {[%clk 0:00:22]}  Rxg3 {[%clk 0:00:08]} 45. Qxg3 {[%clk 0:00:23]}  Qe2 {[%clk 0:00:08]} 46. Rf1 {[%clk 0:00:20]}  Nd7 {[%clk 0:00:02]} 47. f6 {[%clk 0:00:17]}  gxf6 {[%clk 0:00:02]} 48. gxf6 {[%clk 0:00:17]}  Nxf6 {[%clk 0:00:01]} 49. Rxf6 {[%clk 0:00:17]}  Bxd4 {[%clk 0:00:01]} 50. Rf7+ {[%clk 0:00:15]}  Kh8 {[%clk 0:00:02]} 51. Bxd4+ {[%clk 0:00:16]}  Qe5 {[%clk 0:00:01]} 52. Bxe5# {[%clk 0:00:16]} 1-0


[Site "https://www.chess.com"]